Cogmind - Beta 15 @@@ ROGUE MODE // 2025.05.31 @ 17:19:36 Player: CL-1C0 Result: Destroyed by H-77 Assassin with Coil Gun Performance ------------- Evolutions (7) 3500 Regions Visited (12) 2400 Robots Destroyed (58) 290 Value Destroyed (1902) 1902 Prototype IDs (36) 720 Alien Tech Used (0) 0 Bonus (589) 589 TOTAL SCORE: 9401 Bonus ------- Follower Combat Kills 234 Entered Garrisons 200 Used RIF Installer 500 Aligned with FarCom 300 Friendly Fire -645 Cogmind --------- Core Integrity 0/1300 Matter 281/300 Energy 71/100 System Corruption 5% Temperature Cool (0) Movement Core (50) Location -3/Garrison Parts ------- > --- POWER (1) -------- (None) > --- PROPULSION (4) --- (None) > --- UTILITY (14) ----- Advanced Signal Interpreter Advanced Terrain Scan Processor Improved System Shield > --- WEAPON (2) ------- (None) > --- INVENTORY (5) ---- Guided Plasma Cannon Advanced Remote Datajack Advanced Remote Datajack Blade Trap Peak State ------------ > --- POWER ------------ Light Antimatter Reactor > --- PROPULSION ------- Antigrav System Improved Gyrokinetic Inverter Improved Gyrokinetic Inverter Improved Gyrokinetic Inverter > --- UTILITY ---------- Experimental Power Amplifier Advanced Gravity Neutralizer Visual Processing Unit Improved Sensor Array Advanced Signal Interpreter Advanced Terrain Scan Processor Improved Target Analyzer Core Analyzer Transmission Jammer Advanced Hacking Suite System Shield Improved System Shield > --- WEAPON ----------- Great Maul > --- INVENTORY -------- Heavy Neutron Cannon Heavy Neutron Cannon Guided Plasma Cannon Great Maul Blade Trap [Rating: 97] Favorites ----------- Power Ion Engine Engine Ion Engine Power Core Micro Fission Core Reactor Particle Reactor Propulsion Light Treads Treads Light Treads Leg Carbon-fiber Leg Hover Unit Improved Gyrokinetic Inverter Flight Unit VTOL Module Utility System Shield Device Transmission Jammer Storage Large Storage Unit Processor Improved Signal Interpreter Hackware System Shield Protection Improved Light Armor Plating Weapon Great Maul Energy Gun AWS/Thermal Energy Cannon Guided Plasma Cannon Ballistic Cannon Slug Cannon Launcher Grenade Launcher Special Weapon Field Lobotomy Kit Impact Weapon Great Maul Slashing Weapon Katana Build | -11 -10 -10 -10 -9 -8 -7 -6 -6 -5 -4 -3 -3 ------- Run | Yrd Mat Min Exi Min Mat Fac Fac Ext Fac Fac Res Gar Slots Evolved 14 | . . . . . 4 2 2 . 2 2 2 . Power . | . . . . . . . . . . . . . Propulsion 2 | . . . . . 1 . 1 . . . . . Utility 12 | . . . . . 3 2 1 . 2 2 2 . Weapon . | . . . . . . . . . . . . . Parts Attached 98 | . 4 4 . 4 11 15 6 14 21 9 2 8 Power 8 | . . . . 1 1 1 . 2 1 1 . 1 Engine 5 | . . . . 1 1 1 . 2 . . . . Core 1 | . . . . . . . . . 1 . . . Reactor 2 | . . . . . . . . . . 1 . 1 Propulsion 30 | . . 2 . . 2 7 2 5 6 4 1 1 Treads 6 | . . 2 . . 2 . . 1 . . . 1 Leg 6 | . . . . . . . . 4 2 . . . Wheel . | . . . . . . . . . . . . . Hover 10 | . . . . . . 4 . . 1 4 1 . Flight 8 | . . . . . . 3 2 . 3 . . . Utility 45 | . 2 1 . 1 7 6 4 4 13 2 1 4 Device 11 | . . . . . . 3 1 1 4 1 1 . Storage 5 | . 1 . . 1 1 . . 1 1 . . . Processor 14 | . . . . . 4 3 1 . 5 1 . . Hackware 10 | . . . . . 1 . 2 . 3 . . 4 Protection 5 | . 1 1 . . 1 . . 2 . . . . Artifact . | . . . . . . . . . . . . . Weapon 15 | . 2 1 . 2 1 1 . 3 1 2 . 2 Energy Gun 1 | . . . . 1 . . . . . . . . Energy Cannon 5 | . 1 . . 1 . . . 1 . 1 . 1 Ballistic Gun . | . . . . . . . . . . . . . Ballistic Cannon 2 | . . 1 . . . . . . . 1 . . Launcher 1 | . 1 . . . . . . . . . . . Special Weapon 1 | . . . . . . . . 1 . . . . Impact Weapon 3 | . . . . . . . . 1 1 . . 1 Slashing Weapon 2 | . . . . . 1 1 . . . . . . Piercing Weapon . | . . . . . . . . . . . . . Special Melee Weapon . | . . . . . . . . . . . . . Unidentified Prototypes 7 | . . . . . . 1 . . 2 2 2 . Parts Lost 26 | . . . . . . . . 4 6 . 4 12 Power 3 | . . . . . . . . . 1 . 1 1 Propulsion 5 | . . . . . . . . 2 1 . . 2 Utility 14 | . . . . . . . . 1 4 . 2 7 Weapon 4 | . . . . . . . . 1 . . 1 2 Highest Loss Streak 6 | . . . . . . . . 4 2 . 3 6 To Critical Strikes . | . . . . . . . . . . . . . Average Backups 7 | . 10 12 7 3 5 5 3 2 11 3 4 3 Power . | . 2 1 2 . . . . . . . . . Propulsion 1 | . 4 2 . . 1 . . . 3 . . . Utility 1 | . . 2 . . . 1 . . 4 . . . Weapon 2 | . 2 5 3 1 2 2 2 1 2 3 4 2 Tool/Special . | . . . . . . . . . . . . . Unused Backups 40 | . 7 6 12 . 4 3 . 1 5 . . 2 Power 7 | . 1 2 4 . . . . . . . . . Propulsion 12 | . 4 . 2 . 2 2 . . 2 . . . Utility 8 | . 1 2 2 . . 1 . . 2 . . . Weapon 9 | . 1 2 4 . 1 . . 1 . . . . Tool/Special 4 | . . . . . 1 . . . 1 . . 2 Average Slot Usage (%) 85 | . 99 100 86 76 82 80 90 83 91 75 61 55 Engine 7 | . 14 14 10 9 9 6 6 4 4 . . . Treads 9 | . . 19 28 28 25 7 . 3 . . . 1 Leg 8 | . 28 8 . . . . . 7 19 . . . Hover 1 | . . . . . . 3 . . . 10 11 8 Flight 3 | . . . . . . 12 24 11 2 5 . . Device 6 | . . . . . . 9 13 8 14 10 9 . Storage 7 | . 24 14 10 12 9 2 . . 4 . . . Processor 13 | . . . . . 16 19 20 20 22 25 21 14 Hackware 6 | . . . . . 4 7 18 14 7 15 14 20 Protection 5 | . 2 14 14 14 9 3 . 3 3 . . . Energy Gun 5 | . 25 8 . 10 5 . . . 1 . . . Energy Cannon 1 | . 1 . . . . . . 3 3 . . . Ballistic Cannon 1 | . . 5 10 . . . . . . . . . Launcher 2 | . . 14 10 . . . . . . . . . Impact Weapon 1 | . . . . . . . . . 2 5 2 3 Slashing Weapon 1 | . . . . . 3 6 5 . . . . . Peak Build Rating 97 | . 8 11 13 23 36 55 55 65 79 88 97 78 Average Rating 39 | . 7 9 10 18 29 33 52 49 68 69 65 60 On Entrance 33 | 6 6 8 11 6 23 26 40 55 65 54 88 49 Naked Turns . | . . . . . . . . . . . . . Heaviest Build 92 | 13 33 38 38 21 92 92 12 33 67 18 23 35 Greatest Support 74 | 20 20 40 40 40 63 63 18 61 74 63 48 24 Greatest Overweight (x) 2 | . 1 1 . . 1 1 . 1 2 1 . 1 Average Overweight (x) . | . . . . . . . . . . . . . Largest Inventory Capacity 25 | . 15 15 15 8 25 25 5 10 20 5 5 5 Average Capacity 11 | . 14 15 12 7 10 11 5 5 17 5 5 5 Most Carried 18 | . 15 15 15 6 11 12 5 10 18 5 5 5 Average Carried 9 | . 10 14 11 4 7 6 4 4 12 4 5 4 Final Capacity 25 | 8 15 15 5 8 25 5 5 10 5 5 5 5 Final Carried 15 | 6 15 15 5 4 11 5 5 10 5 5 5 4 Class Distribution -------------------- 47% | Mutant 18% | Scavenger-Mutant 8% | Hacker-Ninja 7% | Hacker-Mutant 6% | Scavenger-Assassin 5% | Hacker-Sprinter 3% | Scavenger-Sprinter Dominant Class ---------------- Mutant | -10/Materials Mutant | -10/Mines Mutant | -10/Exiles Mutant | -9/Mines Mutant | -8/Materials Scavenger-Sprinter | -7/Factory Hacker-Sprinter | -6/Factory Scavenger-Mutant | -6/Extension Scavenger-Mutant | -5/Factory Hacker-Ninja | -4/Factory Hacker-Ninja | -3/Research Hacker-Mutant | -3/Garrison Resources | -11 -10 -10 -10 -9 -8 -7 -6 -6 -5 -4 -3 -3 ----------- Run | Yrd Mat Min Exi Min Mat Fac Fac Ext Fac Fac Res Gar Matter Collected 1500 | 200 . 152 . 40 110 132 70 311 319 49 96 21 Remotely . | . . . . . . . . . . . . . Salvage Created 2248 | . 79 136 . 93 182 152 70 485 899 49 20 83 Parts 116 | . 2 10 . 2 12 12 9 23 43 . 1 2 Haulers Intercepted 2 | . . . . . 1 . . . 1 . . . Recyclers Shooed 3 | . . 1 . . 1 1 . . . . . . Parts Field Recycled . | . . . . . . . . . . . . . Retrieved Matter . | . . . . . . . . . . . . . Parts Self-Destructed . | . . . . . . . . . . . . . Prevented . | . . . . . . . . . . . . . Kills | -11 -10 -10 -10 -9 -8 -7 -6 -6 -5 -4 -3 -3 ------- Run | Yrd Mat Min Exi Min Mat Fac Fac Ext Fac Fac Res Gar Combat Hostiles Destroyed 35 | . 3 7 . 2 2 3 . 5 12 . . 1 Melee 3 | . . . . . . . . . 2 . . 1 Guns 18 | . . . . 2 2 3 . 5 6 . . . Cannons 6 | . . 4 . . . . . . 2 . . . AOE 6 | . 3 3 . . . . . . . . . . Classes Destroyed 12 | . 2 2 . . 3 . 1 2 2 . . . Worker 3 | . . 1 . . . 1 . . . . 1 . Builder 2 | . . . . . . . . 1 1 . . . Tunneler 4 | . . . . . . . 2 . 1 1 . . Hauler 2 | . . . . . 1 . . . 1 . . . Recycler 4 | . 1 . . . . 1 . 1 1 . . . Operator 6 | . . . . . 1 . 1 . 2 2 . . Watcher 2 | . . . . . . . . . 2 . . . Swarmer 13 | . 3 3 . . . 3 . . 4 . . . Grunt 12 | . . 4 . 2 . . . 2 4 . . . Brawler 1 | . . . . . . . . 1 . . . . Sentry 5 | . . . . . 2 . . 2 . . . 1 Programmer 4 | . . . . . . . . . 4 . . . Best Kill Streak 5 | . 4 3 . 2 1 3 1 5 4 1 1 1 Combat Bots Only 5 | . 3 3 . 2 1 3 . 5 4 . . 1 Max Kills in Single Turn 2 | . 2 2 . 1 1 1 1 1 1 1 1 1 Gunslinging . | . . . . . . . . . . . . . Exploded 2 | . 2 2 . . . . . . . . . . Melee 1 | . . . . . . . . . 1 . . 1 Uniques/NPCs Destroyed . | . . . . . . . . . . . . . Combat | -11 -10 -10 -10 -9 -8 -7 -6 -6 -5 -4 -3 -3 -------- Run | Yrd Mat Min Exi Min Mat Fac Fac Ext Fac Fac Res Gar Hostile Shots Fired 320 | . 6 12 . 3 4 17 3 58 90 . 41 86 Missed 116 | . 1 3 . . 1 5 3 21 40 . 15 27 Hits 204 | . 5 9 . 3 3 12 . 37 50 . 26 59 Melee 6 | . . . . . . . . . . . . 6 Projectile 198 | . 5 9 . 3 3 12 . 37 50 . 26 53 AOE 2 | . . . . . . . . . . . . 2 Critical Strikes 13 | . . . . . 1 . . . 3 . 2 7 Damage Taken 3880 | . 39 100 . 32 43 132 39 481 749 . 738 1527 Core 1722 | . 8 22 . 11 . 13 23 141 202 . 485 817 Absorbed by Shields 116 | . . . . . . . . 73 . . . 43 Redirected to Shielding 3 | . 1 2 . . . . . . . . . . Core Remaining (%) 91 | 100 . . . 83 100 98 . 80 79 100 . . Volleys Fired 49 | . 1 9 . 3 . . . 21 15 . . . Largest 1 | . 1 1 . 1 . . . 1 1 . . . Hottest 120 | . 30 40 . 120 . . . 120 120 . . . Shots Fired 165 | . 1 9 . 10 7 10 2 65 61 . . . Gun 116 | . . . . 7 7 10 2 44 46 . . . Cannon 40 | . . 6 . 3 . . . 16 15 . . . Launcher 4 | . 1 3 . . . . . . . . . . Special 5 | . . . . . . . . 5 . . . . Kinetic 6 | . . 6 . . . . . . . . . . Thermal 150 | . . . . 10 7 10 2 60 61 . . . Explosive 4 | . 1 3 . . . . . . . . . . Electromagnetic . | . . . . . . . . . . . . . Robot Hit Streak 32 | . 1 5 . 6 6 16 18 32 30 . . . Robot Miss Streak 2 | . . 1 . 1 1 . . 1 2 . . . Penetration Max . | . . . . . . . . . . . . . Secondary Targets . | . . . . . . . . . . . . . Autonomous 117 | . . . . 7 7 10 2 44 47 . . . Shots Hit Robots 171 | . 1 6 . 6 10 13 5 62 58 5 1 4 Core Hits 63 | . 3 9 . 2 4 4 2 16 21 . 1 1 Critical Kills 2 | . . . . . . . . . 1 . . 1 Critical Parts Destroyed 7 | . . . . . . . . . 2 4 . 1 Critical Strikes 11 | . . . . . . . . 1 3 4 . 3 Smash 10 | . . . . . . . . . 3 4 . 3 Sever 1 | . . . . . . . . 1 . . . . Melee Attacks 99 | . . . . . 9 13 8 6 20 18 6 19 Impact 64 | . . . . . . . . 1 20 18 6 19 Slashing 35 | . . . . . 9 13 8 5 . . . . Piercing . | . . . . . . . . . . . . . Sneak Attacks 15 | . . . . . 4 3 2 1 3 1 1 . Combat Hostiles . | . . . . . . . . . . . . . Follow-up Attacks . | . . . . . . . . . . . . . Damage Inflicted 7525 | . 245 343 . 285 406 628 378 2150 2577 262 121 130 Guns 3162 | . . . . 175 163 292 52 1226 1254 . . . Cannons 1386 | . . 172 . 110 . . . 559 545 . . . Explosions 399 | . 245 154 . . . . . . . . . . Melee 2561 | . . . . . 243 336 326 365 778 262 121 130 Ramming 17 | . . 17 . . . . . . . . . . Kinetic 172 | . . 172 . . . . . . . . . . Thermal 4376 | . . . . 285 163 292 52 1785 1799 . . . Explosive 399 | . 245 154 . . . . . . . . . . Electromagnetic . | . . . . . . . . . . . . . Impact 1385 | . . . . . . . . 94 778 262 121 130 Slashing 1176 | . . . . . 243 336 326 271 . . . . Piercing . | . . . . . . . . . . . . . Highest Corruption 5 | . . . . . . 3 . . 3 . . 5 Average Corruption 2 | . . . . . . 2 . . 2 . . 5 Corruption Purged 3 | . . . . . . . . . 3 . . . Corruption Blocked . | . . . . . . . . . . . . . Effects 6 | . . . . . . 5 . . 1 . . . Message Errors 3 | . . . . . . 3 . . . . . . Matter Fused 2 | . . . . . . 1 . . 1 . . . Heat Flow Errors 1 | . . . . . . 1 . . . . . . Overload Shots . | . . . . . . . . . . . . . Overflow Damage 1102 | . 18 . . . 49 133 221 64 364 222 . 31 Projectiles 63 | . . . . . . . . 5 58 . . . Explosions 18 | . 18 . . . . . . . . . . . Melee 1021 | . . . . . 49 133 221 59 306 222 . 31 Knockbacks 8 | . . 1 . . . . . 1 3 3 . . Impact 6 | . . . . . . . . 1 2 3 . . Kinetic 1 | . . 1 . . . . . . . . . . Secondary 1 | . . . . . . . . . 1 . . . Self-Inflicted Damage . | . . . . . . . . . . . . . Shots . | . . . . . . . . . . . . . Rammed . | . . . . . . . . . . . . . Targets Rammed 2 | . . 2 . . . . . . . . . . Kicked 1 | . . 1 . . . . . . . . . . Crushed 1 | . . 1 . . . . . . . . . . Highest Temperature 270 | . . 42 . 234 4 225 . 203 270 . 5 . Average Temperature 81 | . . 18 . 122 4 122 . 75 93 . 3 . Received Heat Transfer 698 | . . 42 . 12 36 12 . 179 99 . 130 188 Siege Activations . | . . . . . . . . . . . . . Martial Activations . | . . . . . . . . . . . . . Shielding Activations . | . . . . . . . . . . . . . Robots Disrupted . | . . . . . . . . . . . . . Combat Hostiles . | . . . . . . . . . . . . . Robots Corrupted 7 | . . . . . . . . 1 4 2 . . Combat Hostiles 2 | . . . . . . . . . 2 . . . Parts Fried 21 | . . . . . . . . 2 13 6 . . Impact Corruptions 17 | . . . . . . . . 1 9 6 . 1 Robots Melted . | . . . . . . . . . . . . . Combat Hostiles . | . . . . . . . . . . . . . Parts Melted 4 | . . . . . . . . . 4 . . . Heat Transferred 6099 | . . . . 462 222 370 74 2445 2526 . . . Parts Sabotaged . | . . . . . . . . . . . . . Parts Stolen . | . . . . . . . . . . . . . Parts Stripped . | . . . . . . . . . . . . . Power Chain Reactions . | . . . . . . . . . . . . . Alert | -11 -10 -10 -10 -9 -8 -7 -6 -6 -5 -4 -3 -3 ------- Run | Yrd Mat Min Exi Min Mat Fac Fac Ext Fac Fac Res Gar Maximum Alert Level . | . . . . . . . . . . . . . Low Security (%) 100 | . 100 100 . 100 100 100 100 100 100 100 100 100 Level 1 . | . . . . . . . . . . . . . Level 2 . | . . . . . . . . . . . . . Level 3 . | . . . . . . . . . . . . . Level 4 . | . . . . . . . . . . . . . Level 5 . | . . . . . . . . . . . . . High Security . | . . . . . . . . . . . . . Max Security . | . . . . . . . . . . . . . Peak Influence 157 | . 139 79 . 50 30 62 69 157 116 67 70 142 Initial 68 | . . 47 . . . . 25 17 68 42 4 52 Average 25 | . 6 27 . 4 3 24 42 24 29 35 18 95 Influence Increases 1927 | . 145 197 . 51 109 180 131 297 435 105 135 142 Destroy 0b10 Robot/C 800 | . 60 140 . 40 40 60 . 180 260 . . 20 Destroy 0b10 Robot/NC 115 | . 5 5 . . 10 10 15 15 35 15 5 . Destroy Leader 150 | . 10 30 . 10 22 10 . 12 56 . . . Allied During Kill 25 | . . . . . . . . 21 4 . . . Successful Hack 138 | . 6 . . . 18 . 67 17 9 21 . . Disable Machine 105 | . 45 . . . 15 . . . 30 15 . . Anti-Garrison Action 50 | . . . . . . . . . . . . 50 Destroy Structure 154 | . 19 22 . 1 4 10 4 7 26 24 10 27 Partial Spotted 135 | . . . . . . 45 30 15 . 15 15 15 Lose Combat Pursuer 255 | . . . . . . 45 15 30 15 15 105 30 Influence Decreases 1853 | . 22 320 . 50 110 126 149 192 489 183 74 138 Entered New Map 266 | . . 76 . . 1 . 29 19 73 45 5 18 Time Decay 1368 | . 22 244 . 50 109 126 120 124 366 138 69 . Lost Part 189 | . . . . . . . . 19 50 . . 120 Lost Ally 30 | . . . . . . . . 30 . . . . Squads Dispatched 13 | . 1 . . . . 2 2 1 6 1 . . Investigation 4 | . . . . . . 1 1 . 2 . . . Extermination 5 | . . . . . . . . . 4 1 . . Reinforcement 4 | . 1 . . . . 1 1 1 . . . . Assault . | . . . . . . . . . . . . . Garrison . | . . . . . . . . . . . . . Intercept . | . . . . . . . . . . . . . Searches Triggered . | . . . . . . . . . . . . . Construction Impeded 1 | . . . . . . . . 1 . . . . Haulers Reinforced . | . . . . . . . . . . . . . Active Scanning Responses . | . . . . . . . . . . . . . Cargo Convoy Interrupts . | . . . . . . . . . . . . . Stealth | -11 -10 -10 -10 -9 -8 -7 -6 -6 -5 -4 -3 -3 --------- Run | Yrd Mat Min Exi Min Mat Fac Fac Ext Fac Fac Res Gar Distress Signals 8 | . 1 . . . 1 . . 1 2 1 2 . Communications Jammed 5 | . . . . . . . . 5 . . . . Distress Signals 5 | . . . . . . . . 5 . . . . Times Spotted 108 | . 5 8 . 5 9 8 7 14 23 4 9 16 Peak Tracking Total 12 | . 4 3 . 3 4 4 3 7 5 4 7 12 Tactical Retreats 12 | . . . . . . 2 1 1 1 1 4 2 Traps | -11 -10 -10 -10 -9 -8 -7 -6 -6 -5 -4 -3 -3 ------- Run | Yrd Mat Min Exi Min Mat Fac Fac Ext Fac Fac Res Gar Traps Triggered 11 | . . . . . . 1 2 2 2 . 1 3 Indirectly . | . . . . . . . . . . . . . Trap Hack Attempts . | . . . . . . . . . . . . . Triggered . | . . . . . . . . . . . . . Disarmed 1 | . . . . . 1 . . . . . . . Reprogrammed 6 | . . . . . . . . . . 6 . . Reused . | . . . . . . . . . . . . . Traps Extracted . | . . . . . . . . . . . . . Installed . | . . . . . . . . . . . . . Triggered . | . . . . . . . . . . . . . Most Traps Carried 5 | . . 5 5 1 1 1 1 1 1 1 1 1 Machines | -11 -10 -10 -10 -9 -8 -7 -6 -6 -5 -4 -3 -3 ---------- Run | Yrd Mat Min Exi Min Mat Fac Fac Ext Fac Fac Res Gar Machines Disabled 8 | . 3 . . . 1 . . . 2 1 . 1 Max in Single Turn 3 | . 3 . . . 1 . . . 1 1 . 1 Garrison Access 1 | . . . . . . . . . . 1 . . Garrison Relay 1 | . . . . . . . . . . . . 1 Machines Repaired . | . . . . . . . . . . . . . Machines Dismantled . | . . . . . . . . . . . . . Machines Sabotaged . | . . . . . . . . . . . . . Overloaded Fab Kills . | . . . . . . . . . . . . . Hacking | -11 -10 -10 -10 -9 -8 -7 -6 -6 -5 -4 -3 -3 --------- Run | Yrd Mat Min Exi Min Mat Fac Fac Ext Fac Fac Res Gar Machines Accessed 33 | . 3 . 1 . 3 3 7 3 5 6 2 . Terminals 25 | . 3 . . . 3 1 6 3 3 5 1 . Fabricators 3 | . . . . . . . 1 . 2 . . . Repair Stations . | . . . . . . . . . . . . . Recycling Units . | . . . . . . . . . . . . . Scanalyzers . | . . . . . . . . . . . . . Garrison Access 4 | . . . . . . 2 . . . 1 1 . Total Hacks 101 | . 7 . 1 . 15 7 21 6 18 24 2 . Successful 45 | . 2 . 1 . 8 . 11 5 7 10 1 . Failed 56 | . 5 . . . 7 7 10 1 11 14 1 . Catastrophic 14 | . 2 . . . . 4 2 1 2 2 1 . Database Lockouts . | . . . . . . . . . . . . . Manual 68 | . 6 . 1 . 12 3 14 3 13 15 1 . Terminals 85 | . 7 . . . 15 3 18 6 14 21 1 . Fabricators 7 | . . . . . . . 3 . 4 . . . Repair Stations . | . . . . . . . . . . . . . Recycling Units . | . . . . . . . . . . . . . Scanalyzers . | . . . . . . . . . . . . . Garrison Access 8 | . . . . . . 4 . . . 3 1 . Terminal Hacks 22 | . . . 1 . 6 . 5 3 1 6 . . Part Schematic 3 | . . . . . 2 . 1 . . . . . Prototype ID Bank 2 | . . . . . . . . 1 . 1 . . Open Door 3 | . . . . . . . 1 2 . . . . Level Access Points 2 | . . . . . 1 . . . . 1 . . Emergency Access Points 1 | . . . . . 1 . . . . . . . Terminal Index 3 | . . . . . 1 . 1 . 1 . . . Fabricator Index 2 | . . . . . . . 1 . . 1 . . Locate Traps 1 | . . . . . . . . . . 1 . . Disarm Traps 1 | . . . . . 1 . . . . . . . Reprogram Traps 1 | . . . . . . . . . . 1 . . Hauler Manifests 2 | . . . . . . . 1 . . 1 . . Proto ID Catalog 1 | . . . 1 . . . . . . . . . Fabricator Hacks 5 | . . . . . . . 2 . 3 . . . Load Schematic 3 | . . . . . . . 1 . 2 . . . Build 2 | . . . . . . . 1 . 1 . . . Repair Station Hacks . | . . . . . . . . . . . . . Recycling Unit Hacks . | . . . . . . . . . . . . . Scanalyzer . | . . . . . . . . . . . . . Garrison Access Hacks 2 | . . . . . . . . . . 1 1 . Unlock Access 1 | . . . . . . . . . . . 1 . Seal Access 1 | . . . . . . . . . . 1 . . Unauthorized Hacks 16 | . 2 . . . 2 . 4 2 3 3 . . Terminals 14 | . 2 . . . 2 . 4 2 2 2 . . Assimilate 2 | . . . . . . . 1 . 1 . . . Botnet 6 | . 1 . . . 1 . 2 1 . 1 . . Operators 6 | . 1 . . . 1 . 1 1 1 1 . . Fabricators 1 | . . . . . . . . . 1 . . . Recompile 1 | . . . . . . . . . 1 . . . Repair Stations . | . . . . . . . . . . . . . Recycling Units . | . . . . . . . . . . . . . Scanalyzers . | . . . . . . . . . . . . . Garrison Access 1 | . . . . . . . . . . 1 . . Redirect 1 | . . . . . . . . . . 1 . . Data Cores Recovered 4 | . . . . . 1 . 1 . 1 1 . . Used 3 | . . . . . 1 . 1 . . 1 . . Hacking Detections 27 | . 3 . . . 3 3 6 1 4 6 1 . Full Trace Events 3 | . . . . . . 1 1 . 1 . . . Feedback Events 1 | . . . . . . 1 . . . . . . Corruption 1 | . . . . . . 1 . . . . . . Feedback Blocked . | . . . . . . . . . . . . . Robot Schematics Acquired . | . . . . . . . . . . . . . Robots Built . | . . . . . . . . . . . . . Authchips . | . . . . . . . . . . . . . Time . | . . . . . . . . . . . . . Total Robot Build Rating . | . . . . . . . . . . . . . Part Schematics Acquired 3 | . . . . . 2 . 1 . . . . . Parts Built 2 | . . . . . . . 1 . 1 . . . Authchips 1 | . . . . . . . . . 1 . . . Time 201 | . . . . . . . 67 . 134 . . . Total Part Build Rating 8 | . . . . . . . 4 . 4 . . . Parts Repaired . | . . . . . . . . . . . . . Time . | . . . . . . . . . . . . . Parts Recycled . | . . . . . . . . . . . . . Recycled Matter . | . . . . . . . . . . . . . Retrieved Matter . | . . . . . . . . . . . . . Retrieved Components . | . . . . . . . . . . . . . Parts Scanalyzed . | . . . . . . . . . . . . . Part Schematics Acquired . | . . . . . . . . . . . . . Parts Damaged . | . . . . . . . . . . . . . Bothacking | -11 -10 -10 -10 -9 -8 -7 -6 -6 -5 -4 -3 -3 ------------ Run | Yrd Mat Min Exi Min Mat Fac Fac Ext Fac Fac Res Gar Used RIF Installer 1 | . . . . . . . . . . . . 1 Robots Hacked . | . . . . . . . . . . . . . Non-combat . | . . . . . . . . . . . . . Combat . | . . . . . . . . . . . . . Robot Hacks Applied . | . . . . . . . . . . . . . Relay Couplers Released 4 | . . . . . . . . . . . . 4 Machine Destruction 4 | . . . . . . . . . . . . 4 Attached 4 | . . . . . . . . . . . . 4 Fabnet Peak Effective % . | . . . . . . . . . . . . . Robots Rewired . | . . . . . . . . . . . . . Allies Hacked . | . . . . . . . . . . . . . Hacks Repelled . | . . . . . . . . . . . . . Allies | -11 -10 -10 -10 -9 -8 -7 -6 -6 -5 -4 -3 -3 -------- Run | Yrd Mat Min Exi Min Mat Fac Fac Ext Fac Fac Res Gar Total Allies 6 | . . . . . . . . 5 1 . . . Largest Group 2 | . . . . . . . . 2 1 . . . Highest-Rated Group 179 | . . . . . . . . 179 153 . . . Highest-Rated Ally 159 | . . . . . . . . 159 153 . . . Total Orders . | . . . . . . . . . . . . . Ally Attacks 27 | . . . . . . . . 23 4 . . . Total Damage 995 | . . . . . . . . 836 159 . . . Kills 7 | . . . . . . . . 6 1 . . . Allies Corrupted 1 | . . . . . . . . 1 . . . . Allies Melted 1 | . . . . . . . . 1 . . . . Field Lobotomies 5 | . . . . . . . . 5 . . . . Intel | -11 -10 -10 -10 -9 -8 -7 -6 -6 -5 -4 -3 -3 ------- Run | Yrd Mat Min Exi Min Mat Fac Fac Ext Fac Fac Res Gar Active Infowar (turns) 2937 | . . . . . . 285 243 373 1423 316 223 74 Optics 1539 | . . . . . . . . . 939 316 223 61 Sensors 2338 | . . . . . . 285 243 349 1178 196 87 . Jamming 602 | . . . . . . 2 83 239 184 . 64 30 Robot Analysis Total . | . . . . . . . . . . . . . Derelict Logs Recovered 1 | . . . . 1 . . . . . . . . Drone Launches . | . . . . . . . . . . . . . Drone Recoveries . | . . . . . . . . . . . . . Exploration | -11 -10 -10 -10 -9 -8 -7 -6 -6 -5 -4 -3 -3 ------------- Run | Yrd Mat Min Exi Min Mat Fac Fac Ext Fac Fac Res Gar Turns Passed 6630 | . 643 760 328 542 660 432 245 566 1527 316 223 388 Spaces Moved 4754 | 1 195 421 296 369 347 355 494 337 1038 392 268 241 Core 306 | . . . 146 71 . . . 54 1 13 . 21 Treads 1194 | . . 306 150 298 347 53 . 40 . . . . Legs 1132 | 1 195 115 . . . . . 168 653 . . . Wheels . | . . . . . . . . . . . . . Hover 660 | . . . . . . 66 . . . 106 268 220 Flight 1462 | . . . . . . 236 494 75 384 273 . . Fastest Speed 26 | 120 120 160 50 50 160 29 26 26 29 32 50 50 Average Speed 103 | 120 186 168 105 138 166 65 27 100 118 42 65 73 Slowest Speed 240 | 120 190 190 160 160 240 240 29 240 187 100 70 126 Overloaded Moves . | . . . . . . . . . . . . . Propulsion Burnouts . | . . . . . . . . . . . . . Robots Hopped 7 | . . . . . . 2 3 . 1 1 . . Potential Cave-ins 2 | . . . . . . . . . . . . 2 Cave-ins Triggered . | . . . . . . . . . . . . . Exploration Rate (%) 31 | 2 31 77 59 76 25 14 9 37 28 14 14 27 Regions Visited 12 Branch Regions 4 Pre-discovered Areas 1 | . . . . 1 . . . . . . . . Known Exits Taken 7 | . . . . . 1 1 1 1 1 1 1 . Unknown Exits Taken 5 | 1 1 1 1 1 . . . . . . . . Scrap Searched 1 | . . 1 . . . . . . . . . . Spaces Dug 57 | . . 11 . . 3 10 4 . 6 12 5 6 Terrain Destroyed 98 | . 18 23 . 1 4 10 4 2 13 12 5 6 Melee 46 | . . . . . 3 10 4 . 6 12 5 6 Projectile 13 | . . 2 . 1 1 . . 2 7 . . . AOE 39 | . 18 21 . . . . . . . . . . Terrain Rammed . | . . . . . . . . . . . . . Walls Destroyed . | . . . . . . . . . . . . . Machines Disabled . | . . . . . . . . . . . . . Actions | -11 -10 -10 -10 -9 -8 -7 -6 -6 -5 -4 -3 -3 --------- Run | Yrd Mat Min Exi Min Mat Fac Fac Ext Fac Fac Res Gar Total 6211 | . 473 468 316 395 419 533 584 528 1278 504 302 411 Wait 942 | . 260 11 . 18 34 123 70 73 130 80 25 118 Move 4730 | . 194 420 295 368 346 351 487 336 1035 389 268 241 Hop 6 | . . . . . . 1 3 . 1 1 . . Pick Up 73 | . 11 11 8 1 10 7 . 12 10 1 . 2 Fast Attach 80 | . 2 . . 2 5 14 7 16 18 8 2 6 Attach 39 | . . 3 . 2 2 5 1 8 13 1 . 4 Detach 15 | . . . . 1 1 1 1 3 5 2 . 1 Swap 15 | . 2 1 . . 4 . 1 . 7 . . . Drop 106 | . 3 11 13 . 8 18 6 17 24 4 1 1 Fire 49 | . 1 9 . 3 . . . 21 15 . . . Melee 99 | . . . . . 9 13 8 6 20 18 6 19 Ram . | . . . . . . . . . . . . . Kick 1 | . . 1 . . . . . . . . . . Crush 1 | . . 1 . . . . . . . . . . Escape Stasis 55 | . . . . . . . . 36 . . . 19 Rewire . | . . . . . . . . . . . . . Trap . | . . . . . . . . . . . . . Miscellaneous . | . . . . . . . . . . . . . Route ------- -11/Scrapyard -10/Materials -10/Mines (discovered 2 exits: *Exi / [*Sub]) -10/Exiles -9/Mines (discovered 2 exits: *Mat x2) -8/Materials (discovered 3 exits: *Fac x3) -7/Factory -6/Factory (discovered 2 exits: *Low / *Ext) -6/Extension -5/Factory (discovered 2 exits: *Fac / *Upp) -4/Factory (discovered 4 exits: *Res x4) -3/Research -3/Garrison History --------- Turn | Location | Event 1 | -11/Scrapyard | Discovered new exit (range 0) 1 | -11/Scrapyard | Entered Materials 300 | -10/Materials | Build established: Mutant 472 | -10/Materials | Discovered new exit (range 6) 644 | -10/Materials | Entered Mines 802 | -10/Mines | Deemed a non-threat by the Exiles lab entrance 802 | -10/Mines | Discovered new exit (range 5) 856 | -10/Mines | Joined a pair of Derelicts in attacking an 0b10 outpost 1012 | -10/Mines | A weapon hastily lodged in a ceiling crevice suddenly fell to the ground 1031 | -10/Mines | Found a hidden stash of uninstalled traps 1216 | -10/Mines | Discovered new exit (range 12) 1404 | -10/Mines | Entered Exiles 1449 | -10/Exiles | Met 8R-AWN 1476 | -10/Exiles | Met EX-HEX 1518 | -10/Exiles | Met EX-BIN 1537 | -10/Exiles | Aligned with FarCom system 1539 | -10/Exiles | Given EX-Vault access code 1579 | -10/Exiles | Opened EX-Vault 1589 | -10/Exiles | Found AWS/Thermal 1622 | -10/Exiles | Warned to stay clear of 0b10 Research branches 1646 | -10/Exiles | Exiles lab attacked by MAIN.C 1675 | -10/Exiles | Found Gui. Plasma Cannon 1678 | -10/Exiles | Found Field Lobotomy Kit 1728 | -10/Exiles | Discovered new exit (range 10) 1732 | -10/Exiles | Stole three prototypes: AWS/Thermal, Gui. Plasma Cannon, Field Lobotomy Kit 1732 | -10/Exiles | Entered Mines 1847 | -9/Mines | Assembled infested the area 2152 | -9/Mines | Learned Materials non-interactive machine intel 2182 | -9/Mines | Learned location of Storage (-9) 2261 | -9/Mines | Discovered new exit (range 9) 2272 | -9/Mines | Discovered new exit (range 12) 2274 | -9/Mines | Entered Materials 2274 | -8/Materials | Evolved 4 slots: Propulsion x1, Utility x3 2275 | -8/Materials | Loaded intel: 46 non-interactive machine locations 2624 | -8/Materials | Identified exit to Factory 2934 | -8/Materials | Entered Factory 2934 | -7/Factory | Evolved 2 slots: Utility x2 2936 | -7/Factory | FarCom data flow suspended 3356 | -7/Factory | Discovered new exit (range 15) 3366 | -7/Factory | Identified exit to Factory 3366 | -7/Factory | Entered another Factory area 3366 | -6/Factory | Evolved 2 slots: Propulsion x1, Utility x1 3460 | -6/Factory | Discovered new exit (range 9) 3461 | -6/Factory | Spotted B-75 Beast 3463 | -6/Factory | Identified exit to Lower Caves 3478 | -6/Factory | Discovered new exit (range 6) 3478 | -6/Factory | Identified exit to Extension 3577 | -6/Factory | Fabricated Cld. VTOL Module (x1) 3611 | -6/Factory | Entered Extension 3683 | -6/Extension | Assimilated Y-54 Guardian with FLK Orb 3687 | -6/Extension | Assimilated B-48 Gladiator with FLK Orb 3690 | -6/Extension | Assimilated Y-54 Guardian with FLK Orb 3693 | -6/Extension | Assimilated R-10 Processor with FLK Orb 3718 | -6/Extension | Build established: Hacker-Sprinter 3719 | -6/Extension | Rescued A7 3723 | -6/Extension | Lost 3 allies 3747 | -6/Extension | Lost 4 parts (2n1u1w) 3801 | -6/Extension | Assimilated A7 with FLK Orb 4059 | -6/Extension | Spotted B-75 Beast 4083 | -6/Extension | Allies destroyed B-75 Beast 4104 | -6/Extension | Spotted B-75 Beast 4130 | -6/Extension | Allies destroyed B-75 Beast 4162 | -6/Extension | Build established: Scavenger-Mutant 4172 | -6/Extension | Discovered new exit (range 3) 4173 | -6/Extension | Identified exit to Factory 4177 | -6/Extension | Entered Factory 4177 | -5/Factory | Accompanied by 1 ally (A7) 4177 | -5/Factory | Evolved 2 slots: Utility x2 4521 | -5/Factory | AWS/Thermal suddenly broke down 5126 | -5/Factory | Build established: Scavenger-Assassin 5231 | -5/Factory | Fabricated Cld. VTOL Module (x1) 5255 | -5/Factory | Discovered new exit (range 9) 5270 | -5/Factory | Identified exit to Upper Caves 5593 | -5/Factory | Spotted B-75 Beast 5703 | -5/Factory | Discovered new exit (range 5) 5704 | -5/Factory | Identified exit to Factory 5704 | -5/Factory | Entered another Factory area 5704 | -4/Factory | Evolved 2 slots: Utility x2 5963 | -4/Factory | Discovered new exit (range 15) 5986 | -4/Factory | Build established: Hacker-Ninja 5988 | -4/Factory | Identified exit to Research 6020 | -4/Factory | Entered Research 6020 | -3/Research | Evolved 2 slots: Utility x2 6138 | -3/Research | Spotted B-86 Titan 6179 | -3/Research | Lost 3 parts (2u1w) 6243 | -3/Research | Identified exit to Garrison 6243 | -3/Research | Entered Garrison 6396 | -3/Garrison | Installed Relay Interface Framework 6417 | -3/Garrison | Triggered checkpoint 6428 | -3/Garrison | Garrison Relay disabled 6460 | -3/Garrison | Build established: Hacker-Mutant 6467 | -3/Garrison | Triggered checkpoint 6467 | -3/Garrison | Spotted B-86 Titan 6468 | -3/Garrison | Core integrity fell below 50% 6588 | -3/Garrison | Lost 4 parts (1p1n2u) 6621 | -3/Garrison | Core integrity fell below 20% 6629 | -3/Garrison | Triggered checkpoint 6631 | -3/Garrison | Destroyed by H-77 Assassin with Coil Gun Last Messages --------------- 06615_ Field strength at 16. 06615_ Stasis field depleted. 06615_ System Shield destroyed. 06616_ Slug penetrates Wall. 06619_ Imp. Gyrokinetic Inverter destroyed. 06619_ Adv. Hacking Suite destroyed. 06619_ Hvy. Neutron Cannon destroyed. 06619_ System corrupted by crushing effect (+3). 06619_ System corrupted by crushing effect (+2). 06619_ Knocked back. 06619_ Relay Coupler [Demolisher] destroyed. 06619_ Knocked back. 06620_ Penetrated by Slug. 06620_ C-35 Carver knocked back. 06622_ Imp. Gyrokinetic Inverter severed. 06629_ Beams of light sweep through the air. An alarm sounds. 06629_ Relay Coupler [NC] severed. 06629_ Slug penetrates Wall. 06630_ Core Analyzer severed. 06631_ Slug penetrates Wall. Map ----- +----------------------------------------------------+ | ?????????????????????????????????????????????????? | | ?????????????????????????????????????????????????? | | ?????????????????????????????????????????????????? | | ?????????????????????????????????????????????????? | | ?????????????????????????????????????????????????? | | ?????????????????????????????????????????????????? | | ????#####????????????????????????????????????????? | | #???#"""#????????????????????????????????????????? | | #???#" "#????????????????????????????????????????? | | #???#" "#????????????????????????????????????????? | | #???#" "#????????????????????????????????????????? | | #???# #????????????????????????????????????????? | | #???## ##????????????????###?????????????????????? | | #???##]##???????????????? ?????????????????????? | | ????#! #???????????????# ?????????????????????? | | ????#! #???????????????# #?????????????????????? | | ????#! |#???????????????# #?????????????????????? | | ????#! |#???????????????# #?????????????????????? | | #####"^##??????????????? #?????????????????????? | | #????????????????# p#?????????????????????? | | ####"###????????????????# #?????????????????????? | | ???# #??????????????????# #?????????????????????? | | ???# #??????????????????# #?????????????????????? | | #### #??????????#######?# #?????????????????????? | | #??????????# ### #?????????????????????? | | #### #???????##### = #@ #############?????????? | | #??# #???????# ccc #?????????? | | ???# #???????# c #?????????? | | ???# #???????# ## ## ### i##### #?????????? | | ???# #####???# ###g# ## #??? + ????????????? | | ???# #???#^ #?# ##### #?????#####???????????? | | ???# ### #???#^ + #???# #?????????????????????? | | ???# #?#"##### ### ???# #?????????????????????? | | ???# #?# ## #?# #???# #?????????????????????? | | ??###### ## ## #???# #?????????????????????? | | ### ####???# #?????????????????????? | | #?????????????????????? | | #?????????????????????? | | ### ## ## ###########?????????????????????? | | ??# ## ## #???????????????????????????????? | | ??" "???????????????????????????????? | | ??" "???????????????????????????????? | | ??" "???????????????????????????????? | | ??" "???????????????????????????????? | | ??# ## ## #???????????????????????????????? | | ??# ## ## #???????????????????????????????? | | ??# ? ???????????????????????????????? | | ??# ???????????????????????????????? | | ??# ???????????????????????????????? | | ??# ##""""#?####???????????????????????????????? | +----------------------------------------------------+ Best States ------------- Heat Dissipation 73 Energy Generation 27 Energy Capacity 340 Matter Stores 300 Matter Capacity 300 Sight Range 18 Robot Scan Range 16 Terrain Scan Density 210 Jamming Range 12 Power Amplification 40 Additional Mass Support 16 Armor Coverage 150 Core Shielding 20 Evasion (%) 64 Targeting Accuracy 24 Melee Accuracy 14 Target Analysis 6 Core Analysis 6 Recoil Reduction 3 Offensive Hacking 20 Defensive Hacking 22 Relay Coupler Types 4 Relay Coupler Value 91 Authchip Count 1 Item Schematics ----------------- Hacking Suite | -8/Materials | Hacked Plasma Cutter | -8/Materials | Hacked Cld. VTOL Module | -6/Factory | Hacked Robot Schematics ------------------ None Fabricated ------------ Cld. VTOL Module | x1 | -6/Factory Cld. VTOL Module | x1 | -5/Factory | Authchip Repaired ---------- Nothing Alien Tech Used ----------------- None Achievements -------------- None Challenges ------------ None Game ------ Seed ResetMassMachine Manual? 0 Play Time 01:22:12 Cumulative 504.7 hours Start 2025.05.31 @ 15:42:59 End 2025.05.31 @ 17:19:36 Sessions 1 Manual Loads 0 Difficulty Rogue Special Mode None Game No. 553 Rogue 553 Adventurer 0 Explorer 0 Win Type - Total 14 Types 9/0/4/1/0/0/0/0/0/0 Lore% 76 Gallery% 80 Achievement% 82 Wizard Run 0 Options --------- Layout 0 ASCII 0 Keyboard 0 Movement Numpad Keybinds 0 Fullscreen 1 Font 18/SmallcapsGlow Map View 76x50 Zoom Use 0% Tactical HUD 1 Map Filters NONE Filters NONE Steam 1 RUN: 7737b01d-51b2-45cb-8f0d-2b2023b6bf8d